fUST/lending_fUST_20250717
["ID","MTS","AMOUNT","RATE_DAILY","PERIOD"]
[372768277,1752755441952,-460.0,0.00017248,2]
[372768279,1752755441962,-500.0,0.00017273,2]
[372768281,1752755441971,-500.0,0.00017273,2]
[372768283,1752755441980,-509.65564283,0.00017273,2]
[372768285,1752755441989,-500.0,0.00017273,2]
[372768287,1752755441998,-517.09736448,0.00017273,2]
[372768289,1752755442008,-500.0,0.00017273,2]
[372768291,1752755442017,-460.0,0.00017347,2]
[372768293,1752755442027,-460.74664699,0.00017347,2]
[372768295,1752755442036,-460.0,0.00017347,2]
[372768297,1752755442047,-460.0,0.00017416,2]
[372768299,1752755442057,-749.4,0.00017416,2]
[372768301,1752755442069,-401.44634838,0.00017416,2]
[372768303,1752755442079,-460.0,0.00017416,2]
[372768305,1752755442090,-460.0,0.00017416,2]
[372768307,1752755442099,-460.0,0.00017416,2]
[372768309,1752755442108,-460.0,0.00017416,2]
[372768311,1752755442119,-1707.07,0.00017416,2]
[372768313,1752755442129,-460.0,0.00017416,2]
[372768316,1752755442139,-460.0,0.00017416,2]
[372768318,1752755442151,-460.0,0.00017416,2]
[372768320,1752755442161,-462.84120728,0.00017417,2]
[372768321,1752755442171,-462.24579988,0.00017417,2]
[372768323,1752755442180,-460.0,0.00017417,2]
[372768325,1752755442191,-460.0,0.00017417,2]
[372768328,1752755442201,-460.0,0.00017417,2]
[372768329,1752755442210,-460.0,0.00017417,2]
[372768332,1752755442221,-460.0,0.00017417,2]
[372768334,1752755442231,-460.0,0.00017417,2]
[372768336,1752755442241,-460.0,0.00017417,2]
[372768338,1752755442251,-460.0,0.00017417,2]
[372768340,1752755442260,-460.0,0.00017417,2]
[372768341,1752755442270,-3838.37,0.00017417,2]
[372768344,1752755442279,-460.0,0.00017417,2]
[372768346,1752755442293,-460.0,0.00017417,2]
[372768348,1752755442303,-3071.5,0.00017417,2]
[372768350,1752755442315,-460.0,0.00017417,2]
[372768352,1752755442326,-2055.63,0.00017417,2]
[372768354,1752755442336,-686.54,0.00017417,2]
[372768356,1752755442346,-460.0,0.00017417,2]
[372768358,1752755442356,-422.32927254,0.00017417,2]
[372768360,1752755442367,-2393.2,0.00017417,2]
[372768363,1752755442376,-460.0,0.00017417,2]
[372768366,1752755442386,-460.0,0.00017417,2]
[372768368,1752755442395,-1249.26,0.00017417,2]
[372768371,1752755442405,-460.0,0.00017417,2]
[372768373,1752755442414,-1529.39,0.00017417,2]
[372768375,1752755442424,-637.55,0.00017417,2]
[372768377,1752755442433,-460.0,0.00017417,2]
[372768379,1752755442443,-460.0,0.00017417,2]
[372768382,1752755442453,-460.0,0.00017419,2]
[372768385,1752755442462,-460.0,0.00017419,2]
[372768388,1752755442472,-460.0,0.00017419,2]
[372768390,1752755442481,-460.0,0.00017419,2]
[372768392,1752755442491,-460.0,0.00017419,2]
[372768394,1752755442500,-460.0,0.00017419,2]
[372768396,1752755442510,-460.0,0.00017419,2]
[372768398,1752755442519,-460.0,0.00017419,2]
[372768400,1752755442529,-460.0,0.00017419,2]
[372768402,1752755442539,-460.0,0.00017419,2]
[372768404,1752755442548,-460.0,0.00017419,2]
[372768406,1752755442557,-460.0,0.00017419,2]
[372768408,1752755442570,-460.0,0.00017419,2]
[372768410,1752755442579,-460.0,0.0001742,2]
[372768412,1752755442589,-460.0,0.0001742,2]
[372768414,1752755442598,-460.0,0.0001742,2]
[372768416,1752755442608,-460.0,0.0001742,2]
[372768418,1752755442617,-460.0,0.0001742,2]
[372768420,1752755442627,-465.95814815,0.0001742,2]
[372768422,1752755442638,-460.0,0.0001742,2]
[372768424,1752755442647,-460.0,0.0001742,2]
[372768426,1752755442657,-460.0,0.0001742,2]
[372768428,1752755442667,-462.63517024,0.0001742,2]
[372768430,1752755442676,-460.0,0.0001742,2]
[372768432,1752755442685,-460.0,0.0001742,2]
[372768434,1752755442695,-460.0,0.0001742,2]
[372768436,1752755442704,-460.0,0.0001742,2]
[372768438,1752755442713,-460.0,0.0001742,2]
[372768440,1752755442723,-498.81413622,0.0001742,2]
[372768442,1752755442732,-460.0,0.0001742,2]
[372768444,1752755442742,-460.0,0.0001742,2]
[372768446,1752755442751,-460.0,0.0001742,2]
[372768448,1752755442760,-776.01,0.0001742,2]
[372768451,1752755442770,-465.97451558,0.0001742,2]
[372768454,1752755442778,-460.0,0.0001742,2]
[372768457,1752755442788,-467.48955791,0.0001742,2]
[372768459,1752755442797,-460.0,0.0001742,2]
[372768461,1752755442806,-460.0,0.0001742,2]
[372768463,1752755442819,-460.0,0.0001742,2]
[372768465,1752755442828,-636.16,0.0001742,2]
[372768467,1752755442838,-460.0,0.0001742,2]
[372768469,1752755442847,-460.0,0.0001742,2]
[372768471,1752755442856,-561.5,0.0001742,2]
[372768473,1752755442867,-982.18,0.0001742,2]
[372768475,1752755442877,-460.0,0.0001742,2]
[372768477,1752755442887,-408.34857106,0.0001742,2]
[372768479,1752755442896,-460.0,0.0001742,2]
[372768481,1752755442905,-567.6,0.0001742,2]
[372768483,1752755442915,-460.0,0.0001742,2]
[372768485,1752755442925,-460.0,0.0001742,2]
[372768487,1752755442935,-460.0,0.0001742,2]
[372768489,1752755442944,-526.22,0.0001742,2]
[372768491,1752755442954,-460.0,0.0001742,2]
[372768493,1752755442964,-460.0,0.0001742,2]
[372768495,1752755442973,-734.54,0.0001742,2]
[372768497,1752755442983,-539.11,0.0001742,2]
[372768499,1752755442992,-460.0,0.0001742,2]
[372768501,1752755443003,-460.0,0.0001742,2]
[372768503,1752755443012,-576.08884832,0.0001742,2]
[372768505,1752755443021,-460.0,0.0001742,2]
[372768507,1752755443030,-460.0,0.00017421,2]
[372768509,1752755443041,-460.0,0.00017421,2]
[372768511,1752755443050,-460.0,0.00017421,2]
[372768514,1752755443063,-192.22405627,0.00017421,2]
[372768516,1752755443072,-450.57992044,0.00017421,2]
[372768519,1752755443082,-460.0,0.00017421,2]
[372768521,1752755443091,-460.0,0.00017421,2]
[372768522,1752755443100,-460.0,0.00017421,2]
[372768525,1752755443110,-460.0,0.00017421,2]
[372768538,1752755443223,-460.0,0.00017421,2]
[372768540,1752755443248,-460.0,0.00017421,2]
[372768542,1752755443257,-460.0,0.00017421,2]
[372768544,1752755443267,-460.0,0.00017421,2]
[372768546,1752755443276,-460.0,0.00017421,2]
[372768548,1752755443288,-460.0,0.00017421,2]
[372768550,1752755443304,-460.0,0.00017421,2]
[372768552,1752755443318,-460.0,0.00017421,2]
[372768554,1752755443328,-463.74411108,0.00017421,2]
[372768556,1752755443337,-460.0,0.00017421,2]
[372768558,1752755443347,-372.96851109,0.00017421,2]
[372768560,1752755443356,-464.04815477,0.00017421,2]
[372768562,1752755443366,-460.0,0.00017421,2]
[372768564,1752755443376,-460.0,0.00017421,2]
[372768566,1752755443387,-460.0,0.00017421,2]
[372768568,1752755443396,-460.0,0.00017421,2]
[372768570,1752755443406,-343.23900978,0.00017421,2]
[372768572,1752755443415,-310.71482334,0.00017421,2]
[372768574,1752755443425,-577.97,0.00017421,2]
[372768577,1752755443434,-460.0,0.00017421,2]
[372768578,1752755443444,-460.0,0.00017421,2]
[372768580,1752755443453,-460.0,0.00017421,2]
[372768582,1752755443463,-460.0,0.00017421,2]
[372768584,1752755443472,-460.0,0.00017421,2]
[372768586,1752755443481,-460.0,0.00017421,2]
[372768588,1752755443491,-460.0,0.00017421,2]
[372768590,1752755443500,-460.0,0.00017421,2]
[372768592,1752755443510,-460.0,0.00017421,2]
[372768594,1752755443519,-497.23,0.00017421,2]
[372768596,1752755443528,-460.0,0.00017421,2]
[372768598,1752755443538,-645.29,0.00017421,2]
[372768600,1752755443547,-460.0,0.00017421,2]
[372768602,1752755443557,-460.0,0.00017421,2]
[372768604,1752755443569,-460.0,0.00017421,2]
[372768606,1752755443578,-460.0,0.00017421,2]
[372768608,1752755443587,-3801.12,0.00017421,2]
[372768610,1752755443598,-460.0,0.00017421,2]
[372768612,1752755443607,-460.0,0.00017421,2]
[372768614,1752755443616,-460.0,0.00017421,2]
[372768616,1752755443626,-1280.12,0.00017421,2]
[372768618,1752755443635,-463.94729004,0.00017421,2]
[372768620,1752755443645,-558.06,0.00017421,2]
[372768622,1752755443654,-462.89057048,0.00017421,2]
[372768624,1752755443663,-1353.92,0.00017421,2]
[372768625,1752755443673,-460.0,0.00017517,2]
[372768627,1752755443683,-460.0,0.00017517,2]
[372768630,1752755443694,-525.13,0.00017517,2]
[372768632,1752755443705,-460.0,0.00017517,2]
[372768633,1752755443714,-460.0,0.00017517,2]
[372768635,1752755443723,-818.97,0.00017517,2]
[372768638,1752755443733,-460.0,0.00017517,2]
[372768640,1752755443743,-460.0,0.00017517,2]
[372768641,1752755443752,-460.0,0.00017517,2]
[372768643,1752755443761,-460.0,0.00017517,2]
[372768645,1752755443771,-460.0,0.00017517,2]
[372768647,1752755443780,-460.0,0.00017517,2]
[372768649,1752755443789,-460.0,0.00017517,2]
[372768651,1752755443798,-460.0,0.00017517,2]
[372768653,1752755443808,-460.0,0.00017517,2]
[372768655,1752755443818,-460.0,0.00017517,2]
[372768657,1752755443827,-460.0,0.00017517,2]
[372768659,1752755443836,-729.87,0.00017517,2]
[372768661,1752755443846,-460.0,0.00017517,2]
[372768663,1752755443855,-460.0,0.00017517,2]
[372768665,1752755443864,-501.49612056,0.00017517,2]
[372768666,1752755443873,-460.0,0.00017517,2]
[372768668,1752755443882,-463.70370423,0.00017517,2]
[372768670,1752755443891,-460.0,0.00017517,2]
[372768672,1752755443900,-460.0,0.00017517,2]
[372768674,1752755443909,-460.0,0.00017517,2]
[372768676,1752755443919,-460.0,0.00017517,2]
[372768677,1752755443928,-460.0,0.00017517,2]
[372768678,1752755443938,-460.0,0.00017517,2]
[372768679,1752755443947,-460.0,0.00017517,2]
[372768680,1752755443956,-460.0,0.00017517,2]
[372768681,1752755443965,-460.0,0.00017517,2]
[372768682,1752755443975,-460.0,0.00017517,2]
[372768683,1752755443984,-460.0,0.00017517,2]
[372768684,1752755443993,-460.0,0.00017517,2]
[372768685,1752755444003,-460.0,0.00017517,2]
[372768686,1752755444012,-460.0,0.00017517,2]
[372768687,1752755444022,-460.0,0.00017517,2]
[372768688,1752755444032,-460.0,0.00017517,2]
[372768689,1752755444041,-460.0,0.00017517,2]
[372768690,1752755444050,-460.0,0.00017517,2]
[372768691,1752755444059,-787.61,0.00017517,2]
[372768692,1752755444069,-464.03538361,0.00017522,2]
[372768693,1752755444079,-460.0,0.00017522,2]
[372768694,1752755444088,-460.0,0.00017522,2]
[372768695,1752755444097,-460.0,0.00017522,2]
[372768696,1752755444106,-460.0,0.00017522,2]
[372768697,1752755444115,-460.0,0.00017522,2]
[372768698,1752755444127,-460.0,0.00017522,2]
[372768699,1752755444137,-462.09668617,0.00017522,2]
[372768700,1752755444145,-460.0,0.00017522,2]
[372768701,1752755444155,-460.0,0.00017522,2]
[372768702,1752755444164,-463.25652406,0.00017522,2]
[372768703,1752755444173,-281.60881534,0.00017522,2]
[372768704,1752755444182,-460.0,0.00017522,2]
[372768706,1752755444192,-460.0,0.00017522,2]
[372768708,1752755444202,-460.0,0.00017522,2]
[372768710,1752755444211,-460.0,0.00017522,2]
[372768712,1752755444221,-460.0,0.00017522,2]
[372768714,1752755444230,-460.0,0.00017522,2]
[372768716,1752755444240,-460.93383793,0.00017522,2]
[372768718,1752755444250,-460.0,0.00017522,2]
[372768720,1752755444260,-460.0,0.00017522,2]
[372768722,1752755444269,-261.0898832,0.00017522,2]
[372768724,1752755444278,-460.0,0.00017522,2]
[372768726,1752755444293,-460.0,0.00017522,2]
[372768728,1752755444302,-460.0,0.00017522,2]
[372768730,1752755444312,-460.0,0.00017522,2]
[372768731,1752755444322,-460.0,0.00017522,2]
[372768734,1752755444334,-460.0,0.00017522,2]
[372768735,1752755444344,-460.0,0.00017522,2]
[372768737,1752755444355,-460.0,0.00017522,2]
[372768739,1752755444364,-460.0,0.00017522,2]
[372768742,1752755444374,-460.0,0.00017522,2]
[372768743,1752755444384,-460.0,0.00017522,2]
[372768745,1752755444394,-460.0,0.00017522,2]
[372768748,1752755444404,-189.04360871,0.00017522,2]
[372768749,1752755444414,-460.0,0.00017522,2]
[372768751,1752755444424,-462.12568775,0.00017522,2]
[372768753,1752755444434,-460.0,0.00017522,2]
[372768756,1752755444444,-522.99310749,0.00017522,2]
[372768758,1752755444454,-460.0,0.00017522,2]
[372768760,1752755444464,-460.0,0.00017522,2]
[372768761,1752755444474,-460.0,0.00017522,2]
[372768763,1752755444483,-460.0,0.00017522,2]
[372768765,1752755444493,-460.0,0.00017522,2]
[372768767,1752755444502,-460.0,0.00017522,2]
[372768769,1752755444512,-460.0,0.00017522,2]
[372768771,1752755444521,-460.0,0.00017522,2]
[372768773,1752755444531,-460.0,0.00017522,2]
[372768775,1752755444540,-1200.0,0.00017673,2]
[372768777,1752755444550,-749.4,0.0001769,2]
[372768779,1752755444559,-294.99461569,0.0001769,2]
[372768781,1752755444570,-460.0,0.0001769,2]
[372768783,1752755444580,-460.0,0.0001769,2]
[372768785,1752755444590,-1707.07,0.0001769,2]
[372768788,1752755444600,-460.0,0.0001769,2]
[372768790,1752755444609,-479.45815707,0.0001769,2]
[372768792,1752755444619,-460.0,0.00017691,2]
[372768793,1752755444628,-349.85264268,0.00017691,2]
[372768795,1752755444637,-460.0,0.00017691,2]
[372768797,1752755444647,-460.0,0.00017691,2]
[372768800,1752755444658,-460.0,0.00017691,2]
[372768802,1752755444667,-460.0,0.00017691,2]
[372768803,1752755444676,-3838.37,0.00017691,2]
[372768806,1752755444686,-460.0,0.00017691,2]
[372768807,1752755444695,-460.0,0.00017691,2]
[372768809,1752755444704,-3071.5,0.00017691,2]
[372768811,1752755444713,-460.0,0.00017691,2]
[372768813,1752755444723,-2055.63,0.00017691,2]
[372768816,1752755444733,-686.54,0.00017691,2]
[372768817,1752755444743,-460.0,0.00017691,2]
[372768819,1752755444752,-2393.2,0.00017691,2]
[372768821,1752755444761,-460.0,0.00017691,2]
[372768824,1752755444771,-231.39501375,0.00017691,2]
[372768826,1752755444781,-1249.26,0.00017691,2]
[372768828,1752755444791,-460.0,0.00017691,2]
[372768830,1752755444800,-1529.39,0.00017691,2]
[372768832,1752755444810,-637.55,0.00017691,2]
[372768833,1752755444821,-460.0,0.00017691,2]
[372768835,1752755444831,-460.0,0.00017693,2]
[372768838,1752755444840,-460.0,0.00017693,2]
[372768840,1752755444850,-460.0,0.00017693,2]
[372768842,1752755444859,-465.61879569,0.00017693,2]
[372768844,1752755444868,-460.0,0.00017693,2]
[372768845,1752755444878,-460.0,0.00017693,2]
[372768847,1752755444888,-460.0,0.00017693,2]
[372768849,1752755444897,-460.0,0.00017693,2]
[372768852,1752755444907,-460.0,0.00017693,2]
[372768853,1752755444916,-270.00654479,0.00017694,2]
[372768855,1752755444926,-460.0,0.00017694,2]
[372768857,1752755444935,-471.37863093,0.00017694,2]
[372768859,1752755444944,-460.0,0.00017694,2]
[372768861,1752755444955,-466.24462233,0.00017694,2]
[372768863,1752755444965,-460.0,0.00017694,2]
[372768865,1752755444974,-460.0,0.00017694,2]
[372768867,1752755444983,-460.0,0.00017694,2]
[372768869,1752755444993,-460.0,0.00017694,2]
[372768871,1752755445003,-460.0,0.00017694,2]
[372768873,1752755445012,-460.0,0.00017694,2]
[372768875,1752755445021,-776.01,0.00017694,2]
[372768877,1752755445031,-460.0,0.00017694,2]
[372768879,1752755445040,-460.0,0.00017694,2]
[372768881,1752755445052,-469.83793747,0.00017694,2]
[372768883,1752755445062,-636.16,0.00017694,2]
[372768885,1752755445075,-460.0,0.00017694,2]
[372768887,1752755445086,-460.0,0.00017694,2]
[372768889,1752755445096,-561.5,0.00017694,2]
[372768891,1752755445105,-982.18,0.00017694,2]
[372768893,1752755445115,-460.0,0.00017694,2]
[372768895,1752755445125,-567.6,0.00017694,2]
[372768897,1752755445135,-460.0,0.00017694,2]
[372768899,1752755445145,-460.0,0.00017694,2]
[372768901,1752755445155,-526.22,0.00017694,2]
[372768903,1752755445164,-460.0,0.00017694,2]
[372768905,1752755445174,-460.0,0.00017694,2]
[372768907,1752755445184,-734.54,0.00017694,2]
[372768909,1752755445193,-539.11,0.00017694,2]
[372768911,1752755445204,-460.0,0.00017694,2]
[372768913,1752755445213,-448.52880812,0.00017694,2]
[372768915,1752755445222,-460.0,0.00017695,2]
[372768917,1752755445232,-460.0,0.00017695,2]
[372768919,1752755445241,-460.0,0.00017695,2]
[372768921,1752755445251,-460.0,0.00017695,2]
[372768923,1752755445260,-460.0,0.00017695,2]
[372768925,1752755445269,-466.18298713,0.00017695,2]
[372768927,1752755445278,-460.0,0.00017695,2]
[372768929,1752755445289,-460.0,0.00017695,2]
[372768931,1752755445303,-465.61338711,0.00017695,2]
[372768933,1752755445317,-460.0,0.00017695,2]
[372768935,1752755445326,-460.0,0.00017695,2]
[372768938,1752755445336,-405.85128992,0.00017695,2]
[372768940,1752755445346,-460.0,0.00017695,2]
[372768942,1752755445356,-577.97,0.00017695,2]
[372768944,1752755445365,-460.0,0.00017695,2]
[372768946,1752755445375,-460.0,0.00017695,2]
[372768948,1752755445385,-460.0,0.00017695,2]
[372768949,1752755445394,-460.0,0.00017695,2]
[372768952,1752755445405,-460.0,0.00017695,2]
[372768953,1752755445415,-497.23,0.00017695,2]
[372768955,1752755445425,-460.0,0.00017695,2]
[372768957,1752755445435,-645.29,0.00017695,2]
[372768959,1752755445445,-460.0,0.00017695,2]
[372768961,1752755445454,-460.0,0.00017695,2]
[372768963,1752755445465,-460.0,0.00017695,2]
[372768965,1752755445474,-460.0,0.00017695,2]
[372768967,1752755445484,-3801.12,0.00017695,2]
[372768969,1752755445494,-471.56441384,0.00017695,2]
[372768971,1752755445504,-460.0,0.00017695,2]
[372768973,1752755445514,-1280.12,0.00017695,2]
[372768976,1752755445524,-558.06,0.00017695,2]
[372768978,1752755445533,-1353.92,0.00017695,2]
[372768979,1752755445543,-502.41079222,0.00017721,2]
[372768981,1752755445553,-526.26988473,0.00017721,2]
[372768983,1752755445562,-1000.0,0.00017721,2]
[372768985,1752755445573,-1000.0,0.00017721,2]
[372768987,1752755445583,-1000.0,0.00017721,2]
[372768989,1752755445592,-1000.0,0.00017721,2]
[372768991,1752755445601,-1000.0,0.00017721,2]
[372768993,1752755445611,-1000.0,0.00017721,2]
[372768995,1752755445620,-433.59906478,0.00017721,2]
[372768997,1752755445630,-385.80396192,0.00017739,2]
[372768999,1752755445639,-500.55394877,0.00017739,2]
[372769001,1752755445649,-501.05616318,0.0001776,2]
[372769003,1752755445659,-196.28782173,0.0001776,2]
[372769005,1752755445669,-500.0,0.0001776,2]
[372769007,1752755445679,-460.0,0.00017791,2]
[372769009,1752755445689,-368.08341252,0.00017791,2]
[372769012,1752755445699,-525.13,0.00017791,2]
[372769014,1752755445709,-460.0,0.00017791,2]
[372769016,1752755445719,-460.0,0.00017791,2]
[372769018,1752755445728,-818.97,0.00017791,2]
[372769020,1752755445737,-308.21307515,0.00017791,2]
[372769022,1752755445747,-475.18521446,0.00017791,2]
[372769024,1752755445758,-460.0,0.00017791,2]
[372769026,1752755445768,-460.0,0.00017791,2]
[372769028,1752755445778,-460.0,0.00017791,2]
[372769030,1752755445788,-460.0,0.00017791,2]
[372769032,1752755445798,-460.0,0.00017791,2]
[372769034,1752755445808,-729.87,0.00017791,2]
[372769035,1752755445820,-460.0,0.00017791,2]
[372769037,1752755445830,-460.0,0.00017791,2]
[372769039,1752755445839,-460.0,0.00017791,2]
[372769041,1752755445848,-460.0,0.00017791,2]
[372769043,1752755445858,-465.70627507,0.00017791,2]
[372769045,1752755445867,-460.0,0.00017791,2]
[372769047,1752755445877,-460.0,0.00017791,2]
[372769049,1752755445886,-460.0,0.00017791,2]
[372769051,1752755445896,-460.0,0.00017791,2]
[372769053,1752755445906,-460.0,0.00017791,2]
[372769055,1752755445915,-460.0,0.00017791,2]
[372769057,1752755445924,-460.0,0.00017791,2]
[372769059,1752755445933,-460.0,0.00017791,2]
[372769061,1752755445943,-460.0,0.00017791,2]
[372769063,1752755445952,-460.0,0.00017791,2]
[372769065,1752755445962,-460.0,0.00017791,2]
[372769067,1752755445972,-293.09356221,0.00017791,2]
[372769069,1752755445981,-787.61,0.00017791,2]
[372769071,1752755445991,-460.0,0.00017796,2]
[372769073,1752755446000,-464.39187266,0.00017796,2]
[372769075,1752755446009,-470.40507623,0.00017796,2]
[372769077,1752755446019,-460.0,0.00017796,2]
[372769079,1752755446028,-467.87061716,0.00017796,2]
[372769081,1752755446038,-460.0,0.00017796,2]
[372769083,1752755446048,-460.0,0.00017796,2]
[372769085,1752755446059,-460.0,0.00017796,2]
[372769087,1752755446071,-460.0,0.00017796,2]
[372769089,1752755446080,-460.0,0.00017796,2]
[372769091,1752755446090,-460.0,0.00017796,2]
[372769093,1752755446099,-460.0,0.00017796,2]
[372769095,1752755446109,-460.0,0.00017796,2]
[372769097,1752755446119,-460.0,0.00017796,2]
[372769099,1752755446128,-460.0,0.00017796,2]
[372769101,1752755446138,-460.0,0.00017796,2]
[372769103,1752755446149,-467.18557456,0.00017796,2]
[372769105,1752755446158,-460.0,0.00017796,2]
[372769107,1752755446167,-460.0,0.00017796,2]
[372769109,1752755446176,-460.0,0.00017796,2]
[372769124,1752755446186,-460.0,0.00017796,2]
[372769126,1752755446314,-460.0,0.00017796,2]
[372769128,1752755446326,-460.0,0.00017796,2]
[372769130,1752755446336,-460.0,0.00017796,2]
[372769132,1752755446346,-460.0,0.00017796,2]
[372769134,1752755446356,-460.0,0.00017797,2]
[372769137,1752755446368,-2276.89,0.00017797,2]
[372769139,1752755446377,-2375.31,0.00017797,2]
[372769141,1752755446387,-460.0,0.00017797,2]
[372769143,1752755446396,-469.03,0.00017797,2]
[372769145,1752755446406,-1027.89,0.00017797,2]
[372769147,1752755446416,-1423.17,0.00017797,2]
[372769149,1752755446426,-4769.27,0.00017797,2]
[372769151,1752755446435,-1555.84,0.00017797,2]
[372769153,1752755446445,-1000.0,0.00017821,2]
[372769155,1752755446455,-379.08522939,0.00017821,2]
[372769156,1752755446464,-500.0,0.00017821,2]
[372769158,1752755446473,-1925.28980083,0.0001786,2]
[372769160,1752755446483,-518.21826415,0.000179,2]
[372769162,1752755446491,-9961.77342372,0.000179,2]
[372769164,1752755446501,-749.4,0.00017964,2]
[372769166,1752755446511,-460.0,0.00017964,2]
[372769168,1752755446520,-460.0,0.00017964,2]
[372769170,1752755446530,-1707.07,0.00017964,2]
[372769172,1752755446539,-460.0,0.00017964,2]
[372769173,1752755446548,-460.0,0.00017965,2]
[372769174,1752755446559,-460.0,0.00017965,2]
[372769175,1752755446570,-460.0,0.00017965,2]
[372769176,1752755446580,-460.0,0.00017965,2]
[372769177,1752755446589,-460.0,0.00017965,2]
[372769178,1752755446598,-3838.37,0.00017965,2]
[372769179,1752755446607,-460.0,0.00017965,2]
[372769180,1752755446616,-460.0,0.00017965,2]
[372769182,1752755446625,-3071.5,0.00017965,2]
[372769184,1752755446635,-460.0,0.00017965,2]
[372769186,1752755446644,-2055.63,0.00017965,2]
[372769188,1752755446654,-686.54,0.00017965,2]
[372769189,1752755446668,-460.0,0.00017965,2]
[372769192,1752755446678,-2393.2,0.00017965,2]
[372769193,1752755446687,-460.0,0.00017965,2]
[372769196,1752755446697,-1249.26,0.00017965,2]
[372769198,1752755446706,-460.0,0.00017965,2]
[372769200,1752755446716,-1529.39,0.00017965,2]
[372769202,1752755446725,-637.55,0.00017965,2]
[372769204,1752755446735,-468.66255816,0.00017965,2]
[372769206,1752755446744,-460.0,0.00017967,2]
[372769208,1752755446754,-460.0,0.00017967,2]
[372769210,1752755446763,-460.0,0.00017967,2]
[372769212,1752755446773,-460.0,0.00017967,2]
[372769214,1752755446782,-267.45327627,0.00017967,2]
[372769216,1752755446792,-460.0,0.00017967,2]
[372769218,1752755446801,-460.0,0.00017967,2]
[372769220,1752755446811,-460.0,0.00017968,2]
[372769222,1752755446822,-460.0,0.00017968,2]
[372769224,1752755446831,-460.0,0.00017968,2]
[372769226,1752755446840,-460.0,0.00017968,2]
[372769228,1752755446850,-460.0,0.00017968,2]
[372769230,1752755446861,-460.0,0.00017968,2]
[372769232,1752755446871,-460.0,0.00017968,2]
[372769234,1752755446881,-776.01,0.00017968,2]
[372769236,1752755446891,-460.0,0.00017968,2]
[372769238,1752755446900,-460.0,0.00017968,2]
[372769240,1752755446910,-636.16,0.00017968,2]
[372769242,1752755446920,-460.0,0.00017968,2]
[372769244,1752755446929,-460.0,0.00017968,2]
[372769246,1752755446938,-561.5,0.00017968,2]
[372769248,1752755446948,-982.18,0.00017968,2]
[372769251,1752755446957,-460.0,0.00017968,2]
[372769253,1752755446967,-567.6,0.00017968,2]
[372769255,1752755446976,-460.0,0.00017968,2]
[372769257,1752755446985,-460.0,0.00017968,2]
[372769259,1752755446995,-526.22,0.00017968,2]
[372769261,1752755447004,-460.0,0.00017968,2]
[372769262,1752755447013,-460.0,0.00017968,2]
[372769265,1752755447023,-734.54,0.00017968,2]
[372769267,1752755447032,-539.11,0.00017968,2]
[372769269,1752755447041,-597.36668228,0.00017969,2]
[372769271,1752755447051,-460.0,0.00017969,2]
[372769273,1752755447060,-460.0,0.00017969,2]